Cogmind - Beta 17.1 @@@ ROGUE MODE // 2026.08.28 @ 23:30:14 Player: flowerfeast Result: Destroyed by as-27804 with Assembled Heavy Rifle Performance ------------- Evolutions (0) 0 Regions Visited (4) 800 Robots Destroyed (23) 115 Value Destroyed (592) 592 Prototype IDs (1) 20 Alien Tech Used (0) 0 Bonus (0) 0 TOTAL SCORE: 1527 Bonus ------- None Cogmind --------- Core Integrity 0/250 Matter 224/300 Energy 250/250 System Corruption 3% Temperature Cool (0) Movement Walking (120) Location -9/Mines Parts ------- > --- POWER (1) -------- Ion Engine > --- PROPULSION (2) --- Flexi-carbon Leg Flexi-carbon Leg > --- UTILITY (2) ------ Large Storage Unit Experimental Sensor Array > --- WEAPON (2) ------- Grenade Launcher Makeshift Hammer > --- INVENTORY (15) --- Ion Engine Light Nuclear Core Improved Treads Aluminum Leg Aluminum Leg Scrap Suit Medium Storage Unit Decoy Drone Bay Bore Cannon Peak State ------------ > --- POWER ------------ Ion Engine > --- PROPULSION ------- Flexi-carbon Leg Flexi-carbon Leg > --- UTILITY ---------- Large Storage Unit Experimental Sensor Array > --- WEAPON ----------- Grenade Launcher Makeshift Hammer > --- INVENTORY -------- Ion Engine Light Nuclear Core Improved Treads Aluminum Leg Aluminum Leg Scrap Suit Medium Storage Unit Decoy Drone Bay Bore Cannon [Rating: 29] Favorites ----------- Power Light Ion Engine Engine Light Ion Engine Propulsion Aluminum Leg Treads Light Treads Leg Aluminum Leg Utility Medium Storage Unit Device Structural Scanner Storage Medium Storage Unit Protection Weapon Shielding Weapon Makeshift Hammer Energy Gun Small Laser Ballistic Gun Assault Rifle Launcher Rocket Launcher Impact Weapon Makeshift Hammer Build | -11 -10 -10 -10 -9 ------- Run | Yrd Mat Min Exi Min Slots Evolved . | . . . . . Power . | . . . . . Propulsion . | . . . . . Utility . | . . . . . Weapon . | . . . . . Parts Attached 29 | 6 6 10 1 6 Power 4 | 1 . 2 . 1 Engine 4 | 1 . 2 . 1 Core . | . . . . . Reactor . | . . . . . Propulsion 12 | 2 3 3 . 4 Treads 2 | 2 . . . . Leg 10 | . 3 3 . 4 Wheel . | . . . . . Hover . | . . . . . Flight . | . . . . . Utility 6 | 1 2 1 1 1 Device 2 | . 1 . . 1 Storage 3 | 1 1 . 1 . Processor . | . . . . . Hackware . | . . . . . Protection 1 | . . 1 . . Artifact . | . . . . . Weapon 7 | 2 1 4 . . Energy Gun 2 | 1 . 1 . . Energy Cannon . | . . . . . Ballistic Gun 2 | 1 1 . . . Ballistic Cannon . | . . . . . Launcher 2 | . . 2 . . Special Weapon . | . . . . . Impact Weapon 1 | . . 1 . . Slashing Weapon . | . . . . . Piercing Weapon . | . . . . . Special Melee Weapon . | . . . . . Unidentified Prototypes 1 | . . . . 1 Parts Lost 7 | . . 2 . 5 Power 2 | . . 1 . 1 Propulsion 2 | . . . . 2 Utility 1 | . . . . 1 Weapon 2 | . . 1 . 1 Highest Loss Streak 5 | . . 2 . 5 To Critical Strikes . | . . . . . Average Backups 7 | 2 5 8 8 10 Power 1 | . 1 1 1 2 Propulsion 2 | 1 1 2 2 2 Utility 2 | . 1 2 3 3 Weapon 1 | . . 1 1 . Tool/Special . | . . . . . Unused Backups 8 | . 1 1 . 6 Power 2 | . . . . 2 Propulsion 1 | . . . . 1 Utility 2 | . . . . 2 Weapon 3 | . 1 1 . 1 Tool/Special . | . . . . . Average Slot Usage (%) 99 | . 96 99 100 98 Engine 14 | . 14 14 14 14 Treads 1 | . 11 . . . Leg 26 | . 16 28 28 27 Device 4 | . 11 6 . 2 Storage 14 | . 14 14 14 14 Protection 9 | . . 7 14 10 Energy Gun 1 | . . 3 . . Ballistic Gun 6 | . 26 7 . . Launcher 10 | . . 8 14 13 Impact Weapon 10 | . . 7 14 14 Peak Build Rating 29 | 6 7 14 14 29 Average Rating 12 | 4 6 10 14 17 On Entrance 8 | . 6 7 14 14 Avg Prop Armor Cover (%) . | . . . . . Naked Turns . | . . . . . Heaviest Build 32 | 14 20 21 31 32 Greatest Support 40 | 40 40 20 20 40 Greatest Overweight (x) 1 | . . 1 1 1 Average Overweight (x) . | . . . 1 . Largest Inventory Capacity 15 | 8 10 10 15 15 Average Capacity 10 | 6 9 10 10 15 Most Carried 13 | 5 6 10 11 13 Average Carried 9 | 2 5 9 10 12 Final Capacity 15 | 8 10 10 15 15 Final Carried 11 | 4 5 10 11 11 Class Distribution -------------------- 100% | Mutant Dominant Class ---------------- Mutant | -10/Materials Mutant | -10/Mines Mutant | -10/Exiles Mutant | -9/Mines Resources | -11 -10 -10 -10 -9 ----------- Run | Yrd Mat Min Exi Min Matter Collected 825 | 193 169 273 . 190 Remotely . | . . . . . Salvage Created 655 | . 94 309 . 252 Parts 27 | . 4 14 . 9 Haulers Intercepted . | . . . . . Recyclers Shooed . | . . . . . Parts Field Recycled . | . . . . . Retrieved Matter . | . . . . . Parts Self-Destructed . | . . . . . Prevented . | . . . . . Parts Restored . | . . . . . Kills | -11 -10 -10 -10 -9 ------- Run | Yrd Mat Min Exi Min Combat Hostiles Destroyed 25 | . 2 10 . 13 Melee 2 | . . 1 . 1 Guns 10 | . 2 8 . . AOE 10 | . . . . 10 Classes Destroyed 7 | . 1 3 . 3 Worker 1 | . . . . 1 Builder 2 | . . 1 . 1 Tunneler 1 | . . . . 1 Swarmer 6 | . . 3 . 3 Grunt 12 | . 2 6 . 4 Duelist 1 | . . . . 1 Assembled 6 | . . 1 . 5 Best Kill Streak 5 | . 2 4 . 5 Combat Bots Only 5 | . 2 4 . 5 Max Kills in Single Turn 3 | . 1 1 . 3 Gunslinging . | . . . . . Exploded 3 | . . . . 3 Melee 1 | . . 1 . 1 Uniques/NPCs Destroyed . | . . . . . Combat | -11 -10 -10 -10 -9 -------- Run | Yrd Mat Min Exi Min Hostile Shots Fired 95 | . 11 50 . 34 Missed 20 | . . 12 . 8 Hits 75 | . 11 38 . 26 Melee 1 | . . . . 1 Projectile 74 | . 11 38 . 25 AOE 10 | . . . . 10 Critical Strikes 1 | . 1 . . . Part Disruptions 1 | . . 1 . . Damage Taken 1215 | . 160 393 34 628 Core 251 | . . 32 17 202 Absorbed by Shields . | . . . . . Redirected to Shielding 51 | . . 9 . 42 Core Remaining (%) 100 | 100 . . . . Volleys Fired 54 | . 12 34 . 8 Largest 2 | . 2 2 . 1 Hottest 60 | . 40 60 . 33 Shots Fired 96 | . 24 61 3 8 Gun 84 | . 24 60 . . Cannon . | . . . . . Launcher 12 | . . 1 3 8 Special . | . . . . . Kinetic 77 | . 24 53 . . Thermal 7 | . . 7 . . Explosive 12 | . . 1 3 8 Electromagnetic . | . . . . . Robot Hit Streak 8 | . 3 8 . 4 Robot Miss Streak 5 | . 1 5 . 2 Penetration Max . | . . . . . Secondary Targets . | . . . . . Shots Hit Robots 60 | . 10 38 . 12 Core Hits 34 | . 4 14 . 16 Critical Kills 1 | . . 1 . . Critical Parts Destroyed 3 | . . . . 3 Critical Strikes 4 | . . 1 . 3 Smash 4 | . . 1 . 3 Melee Attacks 27 | . . 11 . 16 Impact 27 | . . 11 . 16 Slashing . | . . . . . Piercing . | . . . . . Sneak Attacks 4 | . . 1 . 3 Combat Hostiles . | . . . . . Follow-up Attacks . | . . . . . Damage Inflicted 2136 | . 128 807 . 1201 Guns 555 | . 128 427 . . Cannons . | . . . . . Explosions 611 | . . . . 611 Melee 944 | . . 354 . 590 Ramming 26 | . . 26 . . Kinetic 534 | . 128 406 . . Thermal 95 | . . 21 . 74 Explosive 537 | . . . . 537 Electromagnetic . | . . . . . Impact 944 | . . 354 . 590 Slashing . | . . . . . Piercing . | . . . . . Highest Corruption 3 | . 3 3 3 3 Average Corruption 2 | . 2 3 3 3 Corruption Purged . | . . . . . Corruption Blocked . | . . . . . Effects 43 | . . 18 18 7 Message Errors 10 | . . 2 5 3 Matter Fused 11 | . . 5 5 1 Heat Flow Errors 3 | . . 2 . 1 Energy Discharges 5 | . . 3 1 1 Data Loss (minor) 5 | . . 2 2 1 Data Loss (major) 3 | . . 2 1 . Misfires 4 | . . 1 3 . Alerts 2 | . . 1 1 . Overload Shots . | . . . . . Overflow Damage 407 | . . 97 . 310 Projectiles . | . . . . . Explosions . | . . . . . Melee 407 | . . 97 . 310 Knockbacks 2 | . . 1 . 1 Impact 2 | . . 1 . 1 Kinetic . | . . . . . Secondary . | . . . . . Self-Inflicted Damage 34 | . . . 34 . Shots 1 | . . . 1 . Rammed . | . . . . . Targets Rammed 8 | . 2 6 . . Kicked 8 | . 2 6 . . Crushed . | . . . . . Highest Temperature 298 | . 20 298 . 246 Average Temperature 104 | . 5 127 . 121 Received Heat Transfer 389 | . 114 242 . 33 Effects 3 | . . 3 . . Energy Bleed 1 | . . 1 . . Interference 2 | . . 2 . . Siege Activations . | . . . . . Martial Activations . | . . . . . Shielding Activations . | . . . . . Robots Disrupted . | . . . . . Combat Hostiles . | . . . . . Robots Corrupted 6 | . . 2 . 4 Combat Hostiles 3 | . . 1 . 2 Parts Fried 6 | . . 1 . 5 Impact Corruptions 17 | . . 5 . 12 Robots Melted . | . . . . . Combat Hostiles . | . . . . . Parts Melted . | . . . . . Heat Transferred 150 | . . 50 . 100 Parts Sabotaged . | . . . . . Parts Stolen . | . . . . . Parts Stripped . | . . . . . Power Chain Reactions . | . . . . . Alert | -11 -10 -10 -10 -9 ------- Run | Yrd Mat Min Exi Min Maximum Alert Level . | . . . . . Low Security (%) 100 | 100 100 100 . 100 Level 1 . | . . . . . Level 2 . | . . . . . Level 3 . | . . . . . Level 4 . | . . . . . Level 5 . | . . . . . High Security . | . . . . . Max Security . | . . . . . Peak Influence 119 | . 40 70 . 119 Initial . | . . . . . Average 18 | . 4 11 . 46 Influence Increases 585 | . 50 214 . 321 Destroy 0b10 Robot/C 380 | . 40 180 . 160 Destroy 0b10 Robot/NC 20 | . . 5 . 15 Destroy Leader 60 | . 10 20 . 30 Disable Machine 30 | . . . . 30 Destroy Structure 80 | . . 9 . 71 Lose Combat Pursuer 15 | . . . . 15 Influence Decreases 482 | . 50 214 . 218 Time Decay 422 | . 50 204 . 168 Lost Part 60 | . . 10 . 50 Squads Dispatched . | . . . . . Investigation . | . . . . . Extermination . | . . . . . Reinforcement . | . . . . . Assault . | . . . . . Garrison . | . . . . . Intercept . | . . . . . Searches Triggered . | . . . . . Construction Impeded . | . . . . . Haulers Reinforced . | . . . . . Active Scanning Responses . | . . . . . Cargo Convoy Interrupts . | . . . . . Stealth | -11 -10 -10 -10 -9 --------- Run | Yrd Mat Min Exi Min Distress Signals 2 | . . 2 . . Communications Jammed . | . . . . . Distress Signals . | . . . . . Times Spotted 34 | . 2 10 . 22 Peak Tracking Total 7 | . 2 4 . 7 Tactical Retreats 2 | . . . . 2 Traps | -11 -10 -10 -10 -9 ------- Run | Yrd Mat Min Exi Min Traps Triggered 3 | . 3 . . . Indirectly . | . . . . . Trap Hack Attempts . | . . . . . Triggered . | . . . . . Disarmed . | . . . . . Reprogrammed . | . . . . . Reused . | . . . . . Traps Extracted . | . . . . . Installed . | . . . . . Triggered . | . . . . . Machines | -11 -10 -10 -10 -9 ---------- Run | Yrd Mat Min Exi Min Machines Disabled 2 | . . . . 2 Max in Single Turn 1 | . . . . 1 Machines Repaired . | . . . . . Machines Dismantled . | . . . . . Machines Sabotaged . | . . . . . Overloaded Fab Kills . | . . . . . Hacking | -11 -10 -10 -10 -9 --------- Run | Yrd Mat Min Exi Min Machines Accessed 6 | . 1 1 4 . Terminals 1 | . 1 . . . Fabricators . | . . . . . Repair Stations . | . . . . . Recycling Units . | . . . . . Scanalyzers . | . . . . . Garrison Access . | . . . . . Total Hacks 7 | . 2 1 4 . Successful 5 | . . 1 4 . Failed 2 | . 2 . . . Catastrophic 1 | . 1 . . . Database Lockouts . | . . . . . Manual 2 | . 2 . . . Terminals 2 | . 2 . . . Fabricators . | . . . . . Repair Stations . | . . . . . Recycling Units . | . . . . . Scanalyzers . | . . . . . Garrison Access . | . . . . . Terminal Hacks 5 | . . 1 4 . Record 4 | . . . 4 . Open Door 1 | . . 1 . . Fabricator Hacks . | . . . . . Repair Station Hacks . | . . . . . Recycling Unit Hacks . | . . . . . Scanalyzer . | . . . . . Garrison Access Hacks . | . . . . . Unauthorized Hacks . | . . . . . Terminals . | . . . . . Fabricators . | . . . . . Repair Stations . | . . . . . Recycling Units . | . . . . . Scanalyzers . | . . . . . Garrison Access . | . . . . . Data Cores Recovered . | . . . . . Used . | . . . . . Hacking Detections 1 | . 1 . . . Full Trace Events . | . . . . . Feedback Events . | . . . . . Feedback Blocked . | . . . . . Robot Schematics Acquired . | . . . . . Robots Built . | . . . . . Authchips . | . . . . . Time . | . . . . . Total Robot Build Rating . | . . . . . Part Schematics Acquired . | . . . . . Parts Built . | . . . . . Authchips . | . . . . . Time . | . . . . . Total Part Build Rating . | . . . . . Part Studies Acquired . | . . . . . Parts Repaired . | . . . . . Time . | . . . . . Parts Recycled . | . . . . . Recycled Matter . | . . . . . Retrieved Matter . | . . . . . Retrieved Components . | . . . . . Parts Scanalyzed . | . . . . . Part Schematics Acquired . | . . . . . Parts Damaged . | . . . . . Bothacking | -11 -10 -10 -10 -9 ------------ Run | Yrd Mat Min Exi Min Used RIF Installer . | . . . . . Robots Hacked . | . . . . . Non-combat . | . . . . . Combat . | . . . . . Robot Hacks Applied . | . . . . . Relay Couplers Released . | . . . . . Fabnet Peak Effective % . | . . . . . Robots Rewired . | . . . . . Allies Hacked . | . . . . . Hacks Repelled . | . . . . . Allies | -11 -10 -10 -10 -9 -------- Run | Yrd Mat Min Exi Min Total Allies . | . . . . . Largest Group . | . . . . . Highest-Rated Group . | . . . . . Highest-Rated Ally . | . . . . . Total Orders . | . . . . . Ally Attacks . | . . . . . Total Damage . | . . . . . Kills . | . . . . . Allies Corrupted . | . . . . . Allies Melted . | . . . . . Intel | -11 -10 -10 -10 -9 ------- Run | Yrd Mat Min Exi Min Active Infowar (turns) 859 | . 310 454 . 95 Sensors 95 | . . . . 95 Structural 764 | . 310 454 . . Robot Analysis Total . | . . . . . Derelict Logs Recovered 3 | . . 1 . 2 Drone Launches . | . . . . . Drone Recoveries . | . . . . . Exploration | -11 -10 -10 -10 -9 ------------- Run | Yrd Mat Min Exi Min Turns Passed 3033 | 65 377 1051 1031 509 Spaces Moved 1706 | 34 234 638 541 259 Core 4 | 4 . . . . Treads 120 | 30 90 . . . Legs 1582 | . 144 638 541 259 Wheels . | . . . . . Hover . | . . . . . Flight . | . . . . . Fastest Speed 50 | 50 120 120 190 120 Average Speed 158 | 147 135 135 190 170 Slowest Speed 190 | 160 160 190 190 190 Overloaded Moves . | . . . . . Propulsion Burnouts . | . . . . . Robots Hopped . | . . . . . Potential Cave-ins . | . . . . . Cave-ins Triggered . | . . . . . Exploration Rate (%) 55 | 3 31 97 92 56 Regions Visited 4 Branch Regions 3 Pre-discovered Areas 2 | . . 1 . 1 Known Exits Taken . | . . . . . Unknown Exits Taken 4 | 1 1 1 1 . Scrap Searched 4 | . . 1 . 3 Spaces Dug . | . . . . . Terrain Destroyed 113 | . . 9 22 82 Melee . | . . . . . Projectile . | . . . . . AOE 113 | . . 9 22 82 Terrain Rammed . | . . . . . Walls Destroyed . | . . . . . Machines Disabled . | . . . . . Actions | -11 -10 -10 -10 -9 --------- Run | Yrd Mat Min Exi Min Total 1919 | 49 271 754 544 301 Wait 42 | . 7 29 . 6 Move 1702 | 33 233 637 540 259 Hop . | . . . . . Pick Up 40 | 10 7 16 2 5 Fast Attach . | . . . . . Attach 18 | 6 4 3 . 5 Detach . | . . . . . Swap 12 | . 2 7 1 2 Drop 16 | . 4 11 1 . Fire 54 | . 12 34 . 8 Melee 27 | . . 11 . 16 Ram . | . . . . . Kick 8 | . 2 6 . . Crush . | . . . . . Escape Stasis . | . . . . . Rewire . | . . . . . Trap . | . . . . . Miscellaneous . | . . . . . Route ------- -11/Scrapyard -10/Materials -10/Mines (discovered 3 exits: [*Mat x2] / *Exi) -10/Exiles (discovered 2 exits: [*Min x2]) -9/Mines History --------- Turn | Location | Event 10 | -11/Scrapyard | Discovered new exit (range 15) 66 | -11/Scrapyard | Entered Materials 285 | -10/Materials | Discovered new exit (range 12) 305 | -10/Materials | Build established: Mutant 443 | -10/Materials | Entered Mines 496 | -10/Mines | Excavation squad dispatched 496 | -10/Mines | A large section of the Mines collapsed 606 | -10/Mines | Discovered new exit (range 9) 607 | -10/Mines | Found a Scrap Suit stashed away for nefarious purposes 609 | -10/Mines | Found Scrap Suit 651 | -10/Mines | Discovered new exit (range 5) 891 | -10/Mines | A weapon hastily lodged in a ceiling crevice suddenly fell to the ground 951 | -10/Mines | Found DCF Scrap (12 items) 1047 | -10/Mines | Found a damaged Exp. Sensor Array with a note attached 1050 | -10/Mines | Found Prototype Device 1199 | -10/Mines | Learned location of Mines (-9) 1210 | -10/Mines | Received a Rocket Launcher from a helpful Derelict 1357 | -10/Mines | Deemed a non-threat by the Exiles lab entrance 1357 | -10/Mines | Discovered new exit (range 5) 1407 | -10/Mines | Found the Drone Emporium 1421 | -10/Mines | Found Prototype Device 1494 | -10/Mines | Entered Exiles 1494 | -10/Exiles | Found Exiles lab abandoned 1930 | -10/Exiles | Discovered new exit (range 15) 2506 | -10/Exiles | Discovered new exit (range 10) 2525 | -10/Exiles | Entered Mines 2856 | -9/Mines | Assembled infested the area 2861 | -9/Mines | Assisted by a Guerilla fighting off Assembled 2899 | -9/Mines | Core integrity fell below 50% 2913 | -9/Mines | Core integrity fell below 20% 2937 | -9/Mines | Lost 5 parts (1p2n1u1w) 2939 | -9/Mines | Identified Exp. Sensor Array 3034 | -9/Mines | Destroyed by as-27804 with Assembled Heavy Rifle Last Messages --------------- 02946_ K-01 Serf collects debris. 02950_ U-05 Engineer lays Concrete. 02955_ K-01 Serf collects debris. 02955_ U-05 Engineer lays Concrete. 02957_ U-05 Engineer builds a Wall. 02959_ K-01 Serf collects debris. 02964_ System corrupted: Heat flow error (+262). 02966_ K-01 Serf collects debris. 02981_ as-30734 sneak attacks. 02981_ K-01 Serf destroyed. 03005_ as-47401 destroyed. 03005_ as-41831 destroyed. 03005_ as-30734 destroyed. 03013_ as-48749 destroyed. 03017_ Acquired 1 matter. 03018_ Acquired 8 matter. 03019_ The unstable cave ceiling collapses. 03023_ Acquired 2 matter. 03029_ AYU=DVA|OSUXPG: QSDNW:Y&S= 03032_ as-89220 destroyed. Map ----- +----------------------------------------------------+ | ??## """ ############### #???# ???? | | ??# """ ###?????????????# #???# #???? | | ?## ###???????????????# ##### #???? | | ?# ##?????????????????# #???? | | ?# ### #??????????????????####### #???? | | ?## #?# #????????????????????????# #???? | | ??# ### #####????????????????????# #???? | | ??# ### ### ##???????????????????# #???? | | ?# #?##### ##??????????????????# #???? | | ?# #?????# #########??????????# #???? | | ?## ##?????# ############ #???? | | ??#####??????# ######## # ##%#??## | | ?????????????# ##??????# # # ##?# | | ????????????## ###?????###### #### #### | | ?????????#### ############ | | ????????## # =%%% ### ### | | ????????# ##?######## # #?## | | ????????# # #????????## #??# | | ???????## # #????????## ##??? | | ?????### ###### * #?????????## ##???? | | ???### #?# #??????????### ##????? | | ??## #?# ##### ##????????????####?????? | | ??# #?#?????# #??????????????????????? | | ?# #???????# ####???????????????????? | | ?# """" #??????# # #????????????? | | ?# """" #??????#@!% #????????????? | | ?## """" ##??????## a % a #????????????? | | ??# ##?????????# # %a #????????????? | | ??## #??????????? #???? #???????????? | | ???### ##????????????####?????????????????? | | ?????#####??????????????????????????????????? | | ????????????????????????????????????????????? | | ????????????????????????????????????????????? | | ????????????????????????????????????????????? | | ????????????????????????????????????????????? | | | | | | | | | | | | | | | | | | | | | | | | | | | | | | | +----------------------------------------------------+ Best States ------------- Heat Dissipation 25 Energy Generation 10 Energy Capacity 250 Matter Stores 300 Matter Capacity 300 Sight Range 16 Robot Scan Range 20 Terrain Scan Density 10 Weapon Shielding 33 Evasion (%) 55 Recoil Reduction 2 Item Schematics ----------------- None Robot Schematics ------------------ None Fabricated ------------ Nothing Repaired ---------- Nothing Studied --------- None Alien Tech Used ----------------- None Achievements -------------- None Challenges ------------ None Game ------ Seed ReflectiveHybridBiocell Manual? 0 Play Time 00:25:07 Cumulative 13.0 hours Start 2026.08.28 @ 23:06:55 End 2026.08.28 @ 23:30:14 Sessions 1 Manual Loads 0 Difficulty Rogue Special Mode None Game No. 27 Rogue 26 Adventurer 1 Explorer 0 Win Type - Total 0 Types 0/0/0/0/0/0/0/0/0/0 Lore% 15 Gallery% 18 Achievement% 16 Wizard Run 0 Options --------- Layout 0 ASCII 0 Keyboard 0 Movement Mouse Keybinds 0 Fullscreen 2 Font 18/SmallcapsGlow Map View 38x25 Zoom Use 97% Tactical HUD 1 Map Filters NONE Filters NONE Steam 1 RUN: 472ac088-9dda-4302-994d-beb3ce6376a7